bitfinex-derivatives/quotes_BTCF0:USTF0_20250308
["timestamp","ask_amount","ask_price","bid_price","bid_amount"]
[1741476073347,0.1321858,86364.0,86363.0,0.0635]
[1741476073549,0.1321858,86364.0,86363.0,0.4243]
[1741476073744,0.1321858,86364.0,86363.0,0.4937867]
[1741476076251,0.1321858,86364.0,86363.0,0.4243]
[1741476078060,0.1321858,86364.0,86363.0,0.4937867]
[1741476078260,0.1321858,86364.0,86363.0,0.0635]
[1741476078464,0.1013858,86364.0,86363.0,0.4937867]
[1741476078658,0.1013858,86364.0,86363.0,0.5241867]
[1741476079359,0.0319,86364.0,86363.0,0.5241867]
[1741476079560,0.032,86365.0,86364.0,0.0694858]
[1741476079756,0.0694829,86368.0,86365.0,0.0347422]
[1741476079961,0.0649,86367.0,86366.0,0.0694842]
[1741476080162,0.1343834,86367.0,86366.0,0.1327842]
[1741476080362,0.0649,86367.0,86366.0,0.1327842]
[1741476080558,0.0649,86367.0,86366.0,0.14410473]
[1741476081058,0.1343834,86367.0,86366.0,0.14410473]
[1741476081262,0.1343834,86367.0,86366.0,0.1327842]
[1741476081565,0.1343834,86367.0,86366.0,0.0633]
[1741476089070,0.1389444,86367.0,86366.0,0.0633]
[1741476090074,0.1389444,86367.0,86366.0,0.1327842]
[1741476090871,0.1343834,86367.0,86366.0,0.1327842]
[1741476091369,0.1343834,86367.0,86366.0,0.0633]
[1741476093669,0.1343834,86367.0,86366.0,0.1327842]
[1741476095067,0.1343834,86367.0,86366.0,0.0633]
[1741476097267,0.13895258,86367.0,86366.0,0.0633]
[1741476098671,0.13895258,86367.0,86366.0,0.1327842]
[1741476100268,0.00456918,86367.0,86366.0,0.1327842]
[1741476100468,0.07405258,86367.0,86366.0,0.1327842]
[1741476101574,0.0694834,86367.0,86366.0,0.1327842]
[1741476104077,0.1013834,86367.0,86366.0,0.1327842]
[1741476104269,0.0694834,86367.0,86366.0,0.1327842]
[1741476105776,0.06956423,86367.0,86366.0,0.1327842]
[1741476105977,0.06956423,86367.0,86366.0,0.4935842]
[1741476106978,0.13286423,86367.0,86366.0,0.4935842]
[1741476108076,0.13286423,86367.0,86366.0,0.4241]
[1741476109481,0.13743951,86367.0,86366.0,0.4241]
[1741476110172,0.07413951,86367.0,86366.0,0.4935842]
[1741476111280,0.06956423,86367.0,86366.0,0.4935842]
[1741476111680,0.06956423,86367.0,86366.0,0.1327842]
[1741476111882,0.13536423,86367.0,86366.0,0.1327842]
[1741476112583,0.13993465,86367.0,86366.0,0.1327842]
[1741476119585,0.13993465,86367.0,86366.0,0.0633]
[1741476119986,0.36987932,86367.0,86366.0,0.1327842]
[1741476120488,0.36987932,86367.0,86366.0,0.0633]
[1741476120988,0.36987932,86367.0,86366.0,0.1327842]
[1741476122292,0.36987932,86367.0,86366.0,0.0633]
[1741476124492,0.13993465,86367.0,86366.0,0.0633]
[1741476132090,0.13536423,86367.0,86366.0,0.0633]
[1741476132290,0.13997314,86367.0,86366.0,0.0633]
[1741476132993,0.13997314,86367.0,86366.0,0.1327842]
[1741476133690,0.13536423,86367.0,86366.0,0.1327842]
[1741476140406,0.13536423,86367.0,86366.0,0.0633]
[1741476142007,0.13997687,86367.0,86366.0,0.0633]
[1741476161818,0.36992299,86367.0,86366.0,0.0633]
[1741476171110,0.30412299,86367.0,86366.0,0.0633]
[1741476171324,0.66492299,86367.0,86366.0,0.0633]
[1741476171724,0.72672299,86367.0,86366.0,0.0633]
[1741476172024,0.65723959,86367.0,86359.0,0.1829746]
[1741476172324,0.4302891,86360.0,86359.0,0.1829746]
[1741476172715,0.43490174,86360.0,86359.0,0.1829746]
[1741476173115,0.50000174,86360.0,86359.0,0.1829746]
[1741476173314,0.50000174,86360.0,86355.0,0.28471655]
[1741476173315,0.58051264,86360.0,86355.0,0.28471655]
[1741476173510,0.0694923,86356.0,86355.0,0.11588185]
[1741476173821,0.1448923,86356.0,86355.0,0.11588185]
[1741476174020,0.36460494,86356.0,86355.0,0.11588185]
[1741476175527,0.36460494,86356.0,86347.0,0.00017372]
[1741476175528,0.0694987,86348.0,86347.0,0.00017372]
[1741476175725,0.4302987,86348.0,86347.0,0.03037372]
[1741476176025,0.43491134,86348.0,86347.0,0.00017372]
[1741476176517,0.43491134,86348.0,86347.0,0.00895819]
[1741476176921,0.36541264,86348.0,86337.0,0.0634]
[1741476177118,0.4303068,86338.0,86337.0,0.0634]
[1741476177319,0.5057068,86338.0,86337.0,0.0634]
[1741476177526,0.51031944,86338.0,86337.0,0.0634]
[1741476177917,0.57631944,86338.0,86337.0,0.0634]
[1741476178416,0.57631944,86338.0,86337.0,0.07196606]
[1741476178830,0.22694977,86338.0,86337.0,0.07196606]
[1741476179013,0.58774977,86338.0,86337.0,0.07196606]
[1741476184820,0.58774977,86338.0,86329.0,0.00017372]
[1741476184821,0.0695253,86315.0,86312.0,0.0695274]
[1741476185021,0.0695253,86315.0,86308.0,0.0347654]
[1741476185732,0.0303,86321.0,86314.0,0.00880248]
[1741476185930,0.0695342,86304.0,86303.0,0.3608]
[1741476186231,0.0695342,86304.0,86303.0,0.430335]
[1741476188025,0.0695342,86304.0,86303.0,0.524935]
[1741476189927,0.0695342,86304.0,86303.0,0.53342983]
[1741476191130,0.0347605,86321.0,86318.0,0.0695229]
[1741476191332,0.0347605,86321.0,86303.0,0.46389483]
[1741476191333,0.0695237,86317.0,86316.0,0.0347622]
[1741476191632,0.0695269,86314.0,86313.0,0.0695265]
[1741476191832,0.0695269,86314.0,86313.0,0.1350265]
[1741476192837,0.0347615,86318.0,86317.0,0.0695213]
[1741476193239,0.0347615,86318.0,86317.0,0.1332213]
[1741476193731,0.0347615,86318.0,86317.0,0.0637]
[1741476194331,0.03950649,86318.0,86317.0,0.0637]
[1741476194738,0.07270649,86318.0,86317.0,0.0637]
[1741476197535,0.03950649,86318.0,86317.0,0.0637]
[1741476200739,0.0695309,86308.0,86307.0,0.3608]
[1741476201533,0.07427589,86308.0,86307.0,0.3608]
[1741476201836,0.07427589,86308.0,86307.0,0.4303317]
[1741476202738,0.00474499,86308.0,86307.0,0.4627317]
[1741476203238,0.0347647,86310.0,86309.0,0.0695301]
[1741476203633,0.03950969,86310.0,86309.0,0.0695301]
[1741476204530,0.04725918,86310.0,86309.0,0.0695301]
[1741476207538,0.01249448,86310.0,86309.0,0.0695301]
[1741476208346,0.0695293,86310.0,86309.0,0.0695301]
[1741476208537,0.0695293,86310.0,86309.0,0.1330301]
[1741476209034,0.08202378,86310.0,86309.0,0.1330301]
[1741476211839,0.01249448,86310.0,86309.0,0.1330301]
[1741476217027,0.04329448,86310.0,86309.0,0.1330301]
[1741476217739,0.04329448,86310.0,86309.0,0.4938301]
[1741476218341,0.04329448,86310.0,86309.0,0.1330301]
[1741476218740,0.04329448,86310.0,86309.0,0.4938301]
[1741476219136,0.04329448,86310.0,86309.0,0.1330301]
[1741476219343,0.04329448,86310.0,86309.0,0.4938301]
[1741476220843,0.01249448,86310.0,86309.0,0.4938301]
[1741476221043,0.04519448,86310.0,86309.0,0.4938301]
[1741476221437,0.01249448,86310.0,86309.0,0.4938301]
[1741476221638,0.04519448,86310.0,86309.0,0.4938301]
[1741476222438,0.07859448,86310.0,86309.0,0.4938301]
[1741476223134,0.07859448,86310.0,86309.0,0.1330301]
[1741476229348,0.07859448,86310.0,86309.0,0.4938301]
[1741476229549,0.07084499,86310.0,86309.0,0.4938301]
[1741476230454,0.07084499,86310.0,86309.0,0.1330301]
[1741476230650,0.07084499,86310.0,86309.0,0.4938301]
[1741476232345,0.07084499,86310.0,86309.0,0.1330301]
[1741476234553,0.13858282,86317.0,86316.0,0.0695245]
[1741476234752,0.13858282,86317.0,86316.0,0.5057245]
[1741476235346,0.13858282,86317.0,86316.0,0.5687245]
[1741476236252,0.1042537,86321.0,86319.0,0.0347607]
[1741476236557,0.1042537,86321.0,86320.0,0.1649213]
[1741476241661,0.1042537,86321.0,86320.0,0.5257213]
[1741476241864,0.0604,86323.0,86322.0,0.0695197]
[1741476244562,0.0604,86323.0,86322.0,0.08086131]
[1741476252066,0.0604,86323.0,86322.0,0.44166131]
[1741476255861,0.06533798,86323.0,86322.0,0.44166131]
[1741476257155,0.0604,86323.0,86322.0,0.44166131]
[1741476263663,0.0604,86323.0,86322.0,0.50526131]
[1741476263860,0.06529134,86323.0,86322.0,0.50526131]
[1741476265370,0.073269,86323.0,86322.0,0.50526131]
[1741476266077,0.06529134,86323.0,86322.0,0.50526131]
[1741476268277,0.06529134,86323.0,86322.0,0.14446131]
[1741476268576,0.06529134,86323.0,86322.0,0.50526131]
[1741476273675,0.06529134,86323.0,86322.0,0.14446131]
[1741476273879,0.06529134,86323.0,86322.0,0.50526131]
[1741476279383,0.06529134,86323.0,86322.0,0.14446131]
[1741476279777,0.06529134,86323.0,86322.0,0.50526131]
[1741476284791,0.07305231,86323.0,86322.0,0.50526131]
[1741476286190,0.14257121,86323.0,86322.0,0.44166131]
[1741476286394,0.14257121,86323.0,86322.0,0.51702131]
[1741476286687,0.14257121,86323.0,86322.0,0.4303197]
[1741476287592,0.14257121,86323.0,86322.0,0.0695197]
[1741476289195,0.13481024,86323.0,86322.0,0.0695197]
[1741476290999,0.06529134,86323.0,86322.0,0.0695197]
[1741476291699,0.06529134,86323.0,86322.0,0.1339197]
[1741476292497,0.03499134,86323.0,86322.0,0.1339197]
[1741476294695,0.00489134,86323.0,86322.0,0.1339197]
[1741476296896,0.00017372,86326.0,86322.0,0.1339197]
[1741476296897,0.00017372,86326.0,86325.0,0.0695172]
[1741476297504,0.00493741,86326.0,86325.0,0.0695172]
[1741476297696,0.00493741,86326.0,86325.0,0.1332172]
[1741476299302,0.00493741,86326.0,86325.0,0.41020051]
[1741476300299,0.00493741,86326.0,86325.0,0.77100051]
[1741476300900,0.03623741,86326.0,86325.0,0.77100051]
[1741476303406,0.03623741,86326.0,86325.0,0.4940172]
[1741476305707,0.03147372,86326.0,86325.0,0.4940172]
[1741476310213,0.03147372,86326.0,86325.0,0.1332172]
[1741476310411,0.03147372,86326.0,86325.0,0.4940172]
[1741476311514,0.03147372,86326.0,86325.0,0.77067252]
[1741476314517,0.03147372,86326.0,86325.0,0.40987252]
[1741476314707,0.10099012,86326.0,86325.0,0.34617252]
[1741476314913,0.13725023,86326.0,86325.0,0.34617252]
[1741476315520,0.13725023,86326.0,86325.0,0.0695172]
[1741476319416,0.06773383,86326.0,86324.0,0.27665532]
[1741476319720,0.3924,86325.0,86319.0,0.20769441]
[1741476319926,0.0695213,86320.0,86319.0,0.20769441]
[1741476320426,0.07428141,86320.0,86319.0,0.20769441]
[1741476320936,0.13728141,86320.0,86319.0,0.20769441]
[1741476323429,0.0695237,86317.0,86316.0,0.0695239]
[1741476323821,0.07428381,86317.0,86316.0,0.0695239]
[1741476325727,0.0857357,86317.0,86316.0,0.0695239]
[1741476326832,0.1501357,86317.0,86316.0,0.0695239]
[1741476328730,0.1501357,86317.0,86316.0,0.0745239]
[1741476335640,0.1501357,86317.0,86316.0,0.005]
[1741476336639,0.1501357,86317.0,86316.0,0.0358]
[1741476340238,0.1501357,86317.0,86316.0,0.0667]
[1741476344136,0.1501357,86317.0,86316.0,0.1362245]
[1741476345039,0.1501357,86317.0,86316.0,0.0667]
[1741476345332,0.15790094,86317.0,86316.0,0.0667]
[1741476346146,0.15790094,86317.0,86316.0,0.0994]
[1741476347441,0.12630094,86317.0,86316.0,0.0994]
[1741476348041,0.12630094,86317.0,86316.0,0.0358]
[1741476348242,0.0695277,86312.0,86311.0,0.00017372]
[1741476348444,0.4303277,86312.0,86311.0,0.00017372]
[1741476349250,0.50505305,86312.0,86311.0,0.00017372]
[1741476349951,0.49728781,86312.0,86311.0,0.00017372]
[1741476351045,0.50028781,86312.0,86311.0,0.00017372]
[1741476353553,0.55663943,86312.0,86311.0,0.00017372]
[1741476354546,0.55663943,86312.0,86311.0,0.03217372]
[1741476354741,0.55663943,86312.0,86311.0,0.06377372]
[1741476355545,0.55363943,86312.0,86311.0,0.06377372]
[1741476355754,0.55563943,86312.0,86311.0,0.06377372]
[1741476357456,0.49928781,86312.0,86311.0,0.06377372]
[1741476358156,0.50028781,86312.0,86311.0,0.06377372]
[1741476360348,0.50028781,86312.0,86311.0,0.03217372]
[1741476362161,0.46798781,86312.0,86311.0,0.10170222]
[1741476362457,0.46798781,86312.0,86311.0,0.03217372]
[1741476364052,0.46498781,86312.0,86311.0,0.03217372]
[1741476364962,0.60674543,86312.0,86311.0,0.03217372]
[1741476367559,0.24594543,86312.0,86311.0,0.03217372]
[1741476368060,0.27904543,86312.0,86311.0,0.03217372]
[1741476369758,0.63984543,86312.0,86311.0,0.03217372]
[1741476370961,0.60674543,86312.0,86311.0,0.03217372]
[1741476371453,0.60674543,86312.0,86311.0,0.13220222]
[1741476372259,0.60574543,86312.0,86311.0,0.13220222]
[1741476372662,0.46698781,86312.0,86311.0,0.13220222]
[1741476373365,0.36756011,86312.0,86311.0,0.13220222]
[1741476373754,0.43708781,86312.0,86311.0,0.13220222]
[1741476374467,0.43508781,86312.0,86311.0,0.13220222]
[1741476374661,0.43708781,86312.0,86311.0,0.13220222]
[1741476374967,0.07628781,86312.0,86311.0,0.13220222]
[1741476375259,0.07528781,86312.0,86311.0,0.13220222]
[1741476379355,0.10648781,86312.0,86311.0,0.13220222]
[1741476380468,0.13688781,86312.0,86311.0,0.13220222]
[1741476380867,0.13688781,86312.0,86311.0,0.06267372]
[1741476381068,0.49768781,86312.0,86311.0,0.06267372]
[1741476382072,0.49768781,86312.0,86311.0,0.03067372]
[1741476383068,0.13688781,86312.0,86311.0,0.03067372]
[1741476383976,0.1321277,86312.0,86311.0,0.03067372]
[1741476384173,0.13682965,86312.0,86311.0,0.03067372]
[1741476385471,0.13682965,86312.0,86311.0,0.00017372]
[1741476387375,0.14182965,86312.0,86311.0,0.00017372]
[1741476387964,0.0695366,86301.0,86300.0,0.20769441]
[1741476388171,0.4303366,86301.0,86300.0,0.20769441]
[1741476388373,0.43503855,86301.0,86300.0,0.20769441]
[1741476388771,0.49823855,86301.0,86300.0,0.20769441]
[1741476389371,0.85903855,86301.0,86300.0,0.20769441]
[1741476389574,0.85903855,86301.0,86300.0,0.20169441]
[1741476390170,0.85903855,86301.0,86300.0,0.21021907]
[1741476390679,0.069543,86293.0,86292.0,0.00017372]
[1741476390986,0.430343,86293.0,86292.0,0.00017372]
[1741476391168,0.43504495,86293.0,86292.0,0.00017372]
[1741476391473,0.52734495,86293.0,86292.0,0.00017372]
[1741476391680,0.52634495,86293.0,86292.0,0.00017372]
[1741476393175,0.53803041,86293.0,86292.0,0.00017372]
[1741476393481,0.54103041,86293.0,86292.0,0.00017372]
[1741476394673,0.54103041,86293.0,86292.0,0.00892468]
[1741476394873,0.54103041,86293.0,86292.0,0.00017372]
[1741476399275,0.54103041,86293.0,86292.0,0.00890554]
[1741476399475,0.67958061,86293.0,86292.0,0.00890554]
[1741476400084,0.60803761,86293.0,86282.0,0.0621]
[1741476400384,0.0695511,86283.0,86282.0,0.0621]
[1741476400982,0.07425305,86283.0,86282.0,0.0621]
[1741476403685,0.07425305,86283.0,86282.0,0.07071354]
[1741476404388,0.07425305,86283.0,86282.0,0.14026544]
[1741476417188,0.10715305,86283.0,86282.0,0.14026544]
[1741476417392,0.10715305,86283.0,86282.0,0.07071354]
[1741476421991,0.24570325,86283.0,86282.0,0.07071354]
[1741476422897,0.60650325,86283.0,86282.0,0.07071354]
[1741476425389,0.46795305,86283.0,86282.0,0.07071354]
[1741476426288,0.10715305,86283.0,86282.0,0.07071354]
[1741476431597,0.1024511,86283.0,86282.0,0.07071354]
[1741476437110,0.1024511,86283.0,86282.0,0.14026544]
[1741476437607,0.1024511,86283.0,86282.0,0.07071354]
[1741476437806,0.1024511,86283.0,86282.0,0.14026544]
[1741476438608,0.3608,86286.0,86285.0,0.0695495]
[1741476438804,0.4303487,86286.0,86285.0,0.0695495]
[1741476439204,0.4303487,86286.0,86284.0,0.1341502]
[1741476439205,0.0695495,86285.0,86284.0,0.1341502]
[1741476439503,0.1328495,86285.0,86284.0,0.1341502]
[1741476442402,0.27190248,86285.0,86284.0,0.1341502]
[1741476445511,0.27190248,86285.0,86284.0,0.0646]
[1741476447210,0.0695511,86283.0,86282.0,0.00861354]
[1741476447406,0.0695551,86278.0,86277.0,0.063]
[1741476448314,0.1324551,86278.0,86277.0,0.1325559]
[1741476452105,0.1324551,86278.0,86277.0,0.14127093]
[1741476459418,0.1324551,86278.0,86277.0,0.07171503]
[1741476459714,0.1324551,86278.0,86277.0,0.14127093]
[1741476461323,0.1324551,86278.0,86277.0,0.07171503]
[1741476461522,0.1324551,86278.0,86277.0,0.14127093]
[1741476462625,0.1324551,86278.0,86277.0,0.07171503]
[1741476462817,0.1324551,86278.0,86277.0,0.14127093]
[1741476465028,0.1324551,86278.0,86277.0,0.07171503]
[1741476465923,0.1324551,86278.0,86277.0,0.00871503]
[1741476466122,0.0695575,86275.0,86274.0,0.00017383]
[1741476466915,0.1335575,86275.0,86274.0,0.00017383]
[1741476467628,0.13817926,86275.0,86274.0,0.00017383]
[1741476468217,0.49897926,86275.0,86274.0,0.00017383]
[1741476471122,0.49897926,86275.0,86274.0,0.00865419]
[1741476471728,0.55535273,86275.0,86274.0,0.00865419]
[1741476472731,0.58745273,86275.0,86274.0,0.00865419]
[1741476476331,0.22665273,86275.0,86274.0,0.00865419]
[1741476476632,0.94825273,86275.0,86274.0,0.00865419]
[1741476477135,0.22665273,86275.0,86274.0,0.00865419]
[1741476477335,0.94825273,86275.0,86274.0,0.00865419]
[1741476478542,0.94825273,86275.0,86268.0,0.03992561]
[1741476478747,0.0695624,86269.0,86268.0,0.03992561]
[1741476478946,0.4303624,86269.0,86268.0,0.03992561]
[1741476479549,0.49708416,86269.0,86268.0,0.03992561]
[1741476481356,0.49708416,86269.0,86268.0,0.00852561]
[1741476481649,0.0695664,86264.0,86263.0,0.0308]
[1741476482056,0.07418816,86264.0,86263.0,0.0308]
[1741476482547,0.13908816,86264.0,86263.0,0.0308]
[1741476483956,0.15081661,86264.0,86263.0,0.0308]
[1741476484147,0.15081661,86264.0,86263.0,0.0637]
[1741476486458,0.15081661,86264.0,86263.0,0.0963]
[1741476489760,0.51161661,86264.0,86263.0,0.0963]
[1741476490753,0.44671661,86264.0,86263.0,0.0963]
[1741476491052,0.00462176,86264.0,86263.0,0.1658672]
[1741476491256,0.07418816,86264.0,86263.0,0.1658672]
[1741476491561,0.00462176,86264.0,86263.0,0.1658672]
[1741476491952,0.07418816,86264.0,86263.0,0.1658672]
[1741476493560,0.07418816,86264.0,86263.0,0.17746924]
[1741476494960,0.00462176,86264.0,86263.0,0.17746924]
[1741476495365,0.07418816,86264.0,86263.0,0.17746924]
[1741476498964,0.00462176,86264.0,86263.0,0.17746924]
[1741476499360,0.07418816,86264.0,86263.0,0.17746924]
[1741476500265,0.00462176,86264.0,86263.0,0.17746924]
[1741476500565,0.07418816,86264.0,86263.0,0.17746924]
[1741476500954,0.07418816,86264.0,86263.0,0.53826924]
[1741476501260,0.00462176,86264.0,86263.0,0.53826924]
[1741476501860,0.07418816,86264.0,86263.0,0.53826924]
[1741476505670,0.07418816,86264.0,86263.0,0.17746924]
[1741476508066,0.00462176,86264.0,86263.0,0.17746924]
[1741476511170,0.10414593,86271.0,86270.0,0.0695616]
[1741476511477,0.10414593,86271.0,86270.0,0.4303616]
[1741476512176,0.10414593,86271.0,86270.0,0.5262616]
[1741476512478,0.23790673,86271.0,86270.0,0.5262616]
[1741476513479,0.1337608,86271.0,86270.0,0.5262616]
[1741476515381,0.1337608,86271.0,86270.0,0.1654616]
[1741476523383,0.13847385,86271.0,86270.0,0.1654616]
[1741476524087,0.13847385,86271.0,86270.0,0.0695616]
[1741476524290,0.0695624,86269.0,86268.0,0.0695628]
[1741476524593,0.07427545,86269.0,86268.0,0.0695628]
[1741476524995,0.13697545,86269.0,86268.0,0.0695628]
[1741476526283,0.13697545,86269.0,86268.0,0.1023628]
[1741476526882,0.06741305,86269.0,86268.0,0.4631628]
[1741476528397,0.00471305,86269.0,86268.0,0.4631628]
[1741476528990,0.10414593,86271.0,86268.0,0.4631628]
[1741476529190,0.10414593,86271.0,86270.0,0.0695616]
[1741476529593,0.13875535,86275.0,86274.0,0.0695583]
[1741476530100,0.13875535,86275.0,86274.0,0.2195583]
[1741476530598,0.13875535,86275.0,86274.0,0.2804583]
[1741476530993,0.13875535,86275.0,86274.0,0.1304583]
[1741476532200,0.0641,86279.0,86274.0,0.0609]
[1741476532399,0.0641,86279.0,86278.0,0.0695551]
[1741476532792,0.0641,86279.0,86278.0,0.1333551]
[1741476532992,0.06890342,86279.0,86278.0,0.1333551]
[1741476536096,0.03730342,86279.0,86278.0,0.1333551]
[1741476536605,0.03730342,86279.0,86278.0,0.34090443]
[1741476544506,0.03730342,86279.0,86278.0,0.1333551]
[1741476545198,0.10685772,86279.0,86278.0,0.1333551]
[1741476546206,0.10685772,86279.0,86278.0,0.1754551]
[1741476546707,0.10685772,86279.0,86278.0,0.2084551]
[1741476546904,0.03730342,86279.0,86278.0,0.2084551]
[1741476547808,0.06800342,86279.0,86278.0,0.2084551]
[1741476548598,0.13755772,86279.0,86278.0,0.2084551]
[1741476556705,0.06800342,86279.0,86278.0,0.2084551]
[1741476556907,0.06800342,86279.0,86278.0,0.5692551]
[1741476564457,0.06800342,86279.0,86278.0,0.2084551]
[1741476564653,0.06800342,86279.0,86278.0,0.5692551]
[1741476564843,0.03730342,86279.0,86278.0,0.5692551]
[1741476565249,0.0325,86279.0,86278.0,0.5692551]
[1741476566435,0.03729391,86279.0,86278.0,0.5692551]
[1741476574563,0.00479391,86279.0,86278.0,0.5692551]
[1741476574758,0.0324,86282.0,86281.0,0.0695527]
[1741476575166,0.0628,86282.0,86281.0,0.0695527]
[1741476575457,0.0628,86282.0,86281.0,0.1318527]
[1741476576150,0.0628,86282.0,86281.0,0.4926527]
[1741476576554,0.0628,86282.0,86281.0,0.1318527]
[1741476576768,0.0628,86282.0,86281.0,0.4926527]
[1741476577254,0.0628,86282.0,86281.0,0.1318527]
[1741476577447,0.0628,86282.0,86281.0,0.4926527]
[1741476577647,0.0628,86282.0,86281.0,0.1318527]
[1741476577842,0.0628,86282.0,86281.0,0.4926527]
[1741476578244,0.0628,86282.0,86281.0,0.1318527]
[1741476578448,0.0628,86282.0,86281.0,0.4926527]
[1741476578841,0.0628,86282.0,86281.0,0.1318527]
[1741476579037,0.0628,86282.0,86281.0,0.4926527]
[1741476581246,0.0628,86282.0,86281.0,0.1318527]
[1741476581547,0.0628,86282.0,86281.0,0.4926527]
[1741476582548,0.06765745,86282.0,86281.0,0.4926527]
[1741476586448,0.0628,86282.0,86281.0,0.4926527]
[1741476588049,0.06766597,86282.0,86281.0,0.4926527]
[1741476600461,0.10026597,86282.0,86281.0,0.4926527]
[1741476600754,0.0954,86282.0,86281.0,0.4926527]
[1741476601147,0.0954,86282.0,86281.0,0.4303527]
[1741476602560,0.0954,86282.0,86281.0,0.4933527]
[1741476602561,0.10036889,86282.0,86281.0,0.4933527]
[1741476604558,0.10036889,86282.0,86281.0,1.13738724]
[1741476604753,0.10036889,86282.0,86281.0,1.10688724]
[1741476605551,0.10036889,86282.0,86281.0,1.07438724]
[1741476607259,0.10036889,86282.0,86281.0,1.10578724]
[1741476607560,0.10036889,86282.0,86281.0,0.74498724]
[1741476608360,0.10036889,86282.0,86281.0,0.44613438]
[1741476610654,0.10036889,86282.0,86281.0,0.47763438]
[1741476613359,0.06776889,86282.0,86281.0,0.47763438]
[1741476616072,0.06776889,86282.0,86281.0,0.77574376]
[1741476617269,0.06776889,86282.0,86281.0,1.13654376]
[1741476618968,0.06776889,86282.0,86281.0,0.83843438]
[1741476623371,0.06776889,86282.0,86281.0,0.47763438]
[1741476623574,0.06776889,86282.0,86281.0,0.83843438]
[1741476627370,0.06776889,86282.0,86281.0,0.79292594]
[1741476629278,0.06776889,86282.0,86281.0,1.15372594]
[1741476629979,0.06776889,86282.0,86281.0,0.43212594]
[1741476630178,0.06776889,86282.0,86281.0,1.15372594]
[1741476635380,0.0628,86282.0,86281.0,1.15372594]
[1741476637189,0.06770519,86282.0,86281.0,1.15372594]
[1741476639981,0.0628,86282.0,86281.0,1.15372594]
[1741476640475,0.0628,86282.0,86281.0,0.79292594]
[1741476641192,0.06770458,86282.0,86281.0,0.79292594]
[1741476651299,0.06770458,86282.0,86281.0,0.43212594]
[1741476651496,0.06770458,86282.0,86281.0,0.79292594]
[1741476653504,0.06770458,86282.0,86281.0,0.43212594]
[1741476653692,0.06770458,86282.0,86281.0,0.79292594]
[1741476653893,0.06770458,86282.0,86281.0,0.43212594]
[1741476654297,0.06770458,86282.0,86281.0,0.79292594]
[1741476654996,0.06770458,86282.0,86281.0,0.83853692]
[1741476655593,0.0628,86282.0,86281.0,0.83853692]
[1741476660300,0.0628,86282.0,86281.0,0.79292594]
[1741476660712,0.06770122,86282.0,86281.0,0.79292594]
[1741476664512,0.06770122,86282.0,86281.0,0.83853616]
[1741476665410,0.0628,86282.0,86281.0,0.83853616]
[1741476666731,0.0628,86282.0,86281.0,1.19933616]
[1741476668226,0.0628,86282.0,86281.0,0.47773616]
[1741476668427,0.0628,86282.0,86281.0,1.19933616]
[1741476672931,0.06772858,86282.0,86281.0,1.19933616]
[1741476673431,0.06772858,86282.0,86281.0,1.15372594]
[1741476674232,0.10092858,86282.0,86281.0,1.15372594]
[1741476674421,0.10092858,86282.0,86281.0,1.19934548]
[1741476675023,0.10092858,86282.0,86281.0,1.15372594]
[1741476685252,0.06772858,86282.0,86281.0,1.15372594]
[1741476687374,0.03732858,86282.0,86281.0,1.15372594]
[1741476687674,0.03732858,86282.0,86281.0,1.50015664]
[1741476691171,0.03732858,86282.0,86281.0,1.15372594]
[1741476694561,0.00017383,86283.0,86281.0,1.15372594]
[1741476694768,0.0312,86288.0,86287.0,0.0695479]
[1741476694971,0.8956781,86286.0,86285.0,0.0347747]
[1741476695167,0.8956781,86286.0,86285.0,0.14992733]
[1741476698054,0.81509585,86286.0,86285.0,0.14992733]
[1741476698848,0.81509585,86286.0,86285.0,0.51512733]
[1741476699856,0.81509585,86286.0,86285.0,0.81480057]
[1741476703461,0.84799585,86286.0,86285.0,0.81480057]
[1741476704444,0.84799585,86286.0,86285.0,0.76919744]
[1741476704960,0.84799585,86286.0,86285.0,1.49079744]
[1741476705662,0.73375585,86286.0,86285.0,1.49079744]
[1741476707462,0.033,86291.0,86290.0,0.0695454]
[1741476709466,0.033,86291.0,86290.0,0.4303454]
[1741476710454,0.033,86291.0,86290.0,0.7955454]
[1741476710762,0.033,86291.0,86290.0,0.8618454]
[1741476712464,0.033,86291.0,86290.0,1.2226454]
[1741476720660,0.033,86291.0,86290.0,0.5010454]
[1741476720864,0.033,86291.0,86290.0,1.2226454]
[1741476722561,0.033,86291.0,86290.0,0.8574454]
[1741476723273,0.033,86291.0,86290.0,1.14834316]
[1741476727074,0.033,86291.0,86290.0,1.19393931]
[1741476732278,0.033,86291.0,86290.0,1.97281931]
[1741476736371,0.033,86291.0,86290.0,1.25121931]
[1741476736575,0.10431777,86306.0,86299.0,0.034769]
[1741476736876,0.10431777,86306.0,86305.0,0.4303333]
[1741476737274,0.10431777,86306.0,86305.0,0.4960333]
[1741476737867,0.10431777,86306.0,86305.0,0.5265333]
[1741476738275,0.03117383,86314.0,86313.0,0.0695269]
[1741476738582,0.23944098,86330.0,86314.0,0.0695261]
[1741476738772,0.23944098,86330.0,86314.0,0.1305261]
[1741476738972,0.23944098,86330.0,86314.0,0.1638261]
[1741476739168,0.23944098,86330.0,86314.0,0.20938289]
[1741476739570,0.00017383,86323.0,86322.0,0.0695197]
[1741476739883,0.00017383,86323.0,86322.0,0.4303197]
[1741476740584,0.00017383,86323.0,86322.0,0.4919197]
[1741476744584,0.00017383,86323.0,86322.0,0.1311197]
[1741476744892,0.00017383,86323.0,86322.0,0.8527197]
[1741476746089,0.0319,86330.0,86322.0,0.7832]
[1741476746285,0.3608,86352.0,86351.0,0.0694963]
[1741476746591,0.3608,86352.0,86348.0,0.0694984]
[1741476746790,0.37350095,86352.0,86348.0,0.0694984]
[1741476747181,0.0694979,86349.0,86348.0,0.0694984]
[1741476747385,0.08118635,86349.0,86348.0,0.0694984]
[1741476747587,0.0694995,86347.0,86346.0,0.1042491]
[1741476748487,0.07438448,86347.0,86346.0,0.1042491]
[1741476749793,0.13748448,86347.0,86346.0,0.1042491]
[1741476752399,0.13748448,86347.0,86346.0,0.0347499]
[1741476755489,0.13748448,86347.0,86344.0,0.0695013]
[1741476755490,0.0695019,86345.0,86344.0,0.0695013]
[1741476756016,0.14078688,86345.0,86344.0,0.0695013]
[1741476759098,0.14078688,86345.0,86344.0,0.1011013]
[1741476759494,0.14078688,86345.0,86344.0,0.1324013]
[1741476761805,0.1486269,86345.0,86344.0,0.1324013]
[1741476762203,0.1486269,86345.0,86344.0,0.0629]
[1741476762501,0.1486269,86345.0,86344.0,0.0316]
[1741476763508,0.1486269,86345.0,86344.0,0.1011019]
[1741476768306,0.1809269,86345.0,86344.0,0.1011019]
[1741476770605,0.17308688,86345.0,86344.0,0.1011019]
[1741476774114,0.14078688,86345.0,86344.0,0.1011019]
[1741476777716,0.14848233,86345.0,86344.0,0.1011019]
[1741476782123,0.10758688,86345.0,86344.0,0.1011019]
[1741476783324,0.07438688,86345.0,86344.0,0.1011019]
[1741476784324,0.07438688,86345.0,86344.0,0.1324019]
[1741476785117,0.10448688,86345.0,86344.0,0.1324019]